bitfinex/quotes_BTCUSD_20220213
["timestamp","ask_amount","ask_price","bid_price","bid_amount"]
[1644736310233,0.06877634,42430.0,42426.0,0.00897145]
[1644736310834,0.06837628,42430.0,42426.0,0.00897145]
[1644736311233,0.24274956,42432.0,42426.0,0.00897145]
[1644736311434,0.00397666,42427.0,42426.0,0.01338838]
[1644736312486,0.00397666,42427.0,42426.0,0.29659606]
[1644736314084,0.00397666,42427.0,42426.0,0.8265951]
[1644736314484,0.00397666,42427.0,42426.0,0.29659606]
[1644736314883,0.00397666,42427.0,42426.0,0.62726906]
[1644736315090,0.00397666,42427.0,42426.0,0.29659606]
[1644736315286,0.00397666,42427.0,42426.0,0.62726906]
[1644736315689,0.00397666,42427.0,42426.0,0.9265951]
[1644736315893,0.00042793,42429.0,42428.0,0.33901972]
[1644736316141,0.00042793,42429.0,42428.0,0.39181972]
[1644736316341,0.00042793,42429.0,42428.0,0.59181972]
[1644736317140,0.03,42433.0,42430.0,0.54137365]
[1644736317340,0.03,42433.0,42431.0,0.3127799]
[1644736317541,0.03,42433.0,42432.0,0.330673]
[1644736317743,0.03,42433.0,42432.0,0.383473]
[1644736317940,0.03,42433.0,42432.0,0.7612556]
[1644736318141,0.03,42433.0,42432.0,0.8508577]
[1644736318541,0.03,42433.0,42432.0,0.5201847]
[1644736318741,0.03,42433.0,42432.0,0.4201847]
[1644736320291,0.03,42433.0,42432.0,0.3305826]
[1644736321485,0.03,42433.0,42432.0,0.40500149]
[1644736323289,0.03,42433.0,42432.0,0.3305826]
[1644736324829,0.03,42433.0,42432.0,0.383473]
[1644736325030,0.03,42433.0,42432.0,0.64622079]
[1644736325434,0.03,42433.0,42432.0,0.31554779]
[1644736326732,0.03,42433.0,42432.0,0.64622079]
[1644736327879,0.03,42433.0,42432.0,0.383473]
[1644736328883,0.03,42433.0,42432.0,0.31467517]
[1644736329082,0.03,42433.0,42432.0,0.383473]
[1644736329282,0.03,42433.0,42432.0,0.3158363]
[1644736329483,0.03,42433.0,42432.0,0.383473]
[1644736329681,0.03,42433.0,42432.0,0.3158363]
[1644736329883,0.03,42433.0,42432.0,0.31586896]
[1644736330082,0.03,42433.0,42432.0,0.26306896]
[1644736331634,0.03,42433.0,42432.0,0.330673]
[1644736332638,0.03,42433.0,42431.0,0.26278118]
[1644736332838,0.03,42433.0,42432.0,0.26124762]
[1644736333038,0.03,42433.0,42432.0,0.330673]
[1644736333738,0.03,42433.0,42430.0,0.17334842]
[1644736333739,0.03,42433.0,42428.0,0.00150975]
[1644736333938,0.03,42433.0,42429.0,0.330673]
[1644736335386,0.03043536,42433.0,42429.0,0.330673]
[1644736335790,0.03043536,42433.0,42429.0,0.430673]
[1644736335988,0.03043536,42433.0,42431.0,0.330673]
[1644736336189,0.03,42433.0,42431.0,0.330673]
[1644736336387,0.03,42433.0,42431.0,0.1]
[1644736336587,0.03406469,42433.0,42432.0,0.330673]
[1644736336788,0.03450005,42433.0,42432.0,0.330673]
[1644736337389,0.03406469,42433.0,42432.0,0.330673]
[1644736338292,0.03406469,42433.0,42431.0,0.10280128]
[1644736338531,0.03406469,42433.0,42432.0,0.330673]
[1644736339934,0.03406469,42433.0,42431.0,0.00280128]
[1644736340943,0.03406469,42433.0,42432.0,0.383473]
[1644736341137,0.00110603,42435.0,42434.0,0.00876419]
[1644736341337,0.00110603,42435.0,42434.0,0.39223719]
[1644736342136,0.00110603,42435.0,42434.0,0.46335777]
[1644736345087,0.00110603,42435.0,42434.0,0.39223719]
[1644736346337,0.00110603,42435.0,42434.0,0.3947553]
[1644736348843,0.00110603,42435.0,42434.0,0.66047708]
[1644736351900,0.00110603,42435.0,42434.0,0.0640823]
[1644736352100,0.00110603,42435.0,42434.0,0.3419553]
[1644736352600,0.00110603,42435.0,42434.0,0.6153369]
[1644736354044,0.00110603,42435.0,42434.0,0.3419553]
[1644736356642,0.00110603,42435.0,42434.0,0.60847721]
[1644736356840,0.19710603,42436.0,42435.0,0.330673]
[1644736359196,0.19710603,42436.0,42434.0,0.21037768]
[1644736359393,0.19710603,42436.0,42434.0,0.0112823]
[1644736359592,0.19710603,42436.0,42435.0,0.330673]
[1644736361440,0.19710603,42436.0,42435.0,0.40118509]
[1644736361642,0.19710603,42436.0,42435.0,0.66656651]
[1644736362040,0.19710603,42436.0,42435.0,0.86566189]
[1644736362639,0.19710603,42436.0,42435.0,0.4644768]
[1644736362840,0.19710603,42436.0,42435.0,0.52976838]
[1644736363040,0.20416139,42443.0,42442.0,0.04856751]
[1644736363442,0.40461309,42443.0,42442.0,0.04856751]
[1644736363639,0.20416139,42443.0,42442.0,0.04856751]
[1644736364643,0.015003,42443.0,42442.0,0.04856751]
[1644736369237,0.21546381,42443.0,42442.0,0.04856751]
[1644736369639,0.015003,42443.0,42442.0,0.04856751]
[1644736370236,0.21546529,42443.0,42442.0,0.04856751]
[1644736370837,0.015003,42443.0,42442.0,0.04856751]
[1644736371435,0.21546508,42443.0,42442.0,0.05108515]
[1644736371636,0.015003,42443.0,42442.0,0.05108515]
[1644736373994,0.03268823,42443.0,42442.0,0.05108515]
[1644736378840,0.28325285,42443.0,42442.0,0.05108515]
[1644736380494,0.03268823,42443.0,42442.0,0.05108515]
[1644736385346,0.32943658,42443.0,42442.0,0.05108515]
[1644736385545,0.63034612,42443.0,42442.0,0.05108515]
[1644736385747,0.63034612,42443.0,42442.0,0.04856751]
[1644736385748,0.5983472,42443.0,42442.0,0.04856751]
[1644736386745,0.5983472,42443.0,42442.0,0.05066554]
[1644736386746,0.59993222,42443.0,42442.0,0.05066554]
[1644736388196,0.91558903,42443.0,42442.0,0.05066554]
[1644736388394,1.04300632,42443.0,42442.0,0.05066554]
[1644736390399,0.69216006,42443.0,42442.0,0.05066554]
[1644736390593,1.04300632,42443.0,42442.0,0.05066554]
[1644736391048,0.69356545,42443.0,42442.0,0.04856751]
[1644736393044,0.69356545,42443.0,42434.0,0.00876419]
[1644736393243,0.21545812,42436.0,42434.0,0.00876419]
[1644736393441,0.015003,42435.0,42434.0,0.00876419]
[1644736394241,0.29045427,42435.0,42434.0,0.00876419]
[1644736394442,0.27545127,42435.0,42434.0,0.00876419]
[1644736394641,0.29045427,42435.0,42434.0,0.00876419]
[1644736396094,0.34325427,42435.0,42434.0,0.00876419]
[1644736401343,0.34572952,42435.0,42434.0,0.00876419]
[1644736407052,0.27001101,42435.0,42434.0,0.00876419]
[1644736407252,0.21721101,42435.0,42434.0,0.00876419]
[1644736411793,0.41767036,42435.0,42434.0,0.00876419]
[1644736411993,0.21721101,42435.0,42434.0,0.00876419]
[1644736415445,0.41767036,42435.0,42434.0,0.00876419]
[1644736415847,0.41767036,42435.0,42434.0,0.00867741]
[1644736417496,0.21721101,42435.0,42434.0,0.00867741]
[1644736417696,0.21712768,42435.0,42434.0,0.00867741]
[1644736418398,0.41757098,42435.0,42434.0,0.00867741]
[1644736418799,0.21712768,42435.0,42434.0,0.00867741]
[1644736420599,0.52738191,42435.0,42434.0,0.00867741]
[1644736421446,0.77795081,42435.0,42434.0,0.00867741]
[1644736422445,0.46769658,42435.0,42434.0,0.00867741]
[1644736426717,0.21712768,42435.0,42434.0,0.00867741]
[1644736434997,0.52222378,42435.0,42434.0,0.00867741]
[1644736435397,0.21712768,42435.0,42434.0,0.00867741]
[1644736437444,0.50489582,42435.0,42434.0,0.00867741]
[1644736440095,0.55769582,42435.0,42434.0,0.00867741]
[1644736442700,0.55769582,42435.0,42434.0,0.0085725]
[1644736446648,0.85837851,42435.0,42434.0,0.0085725]
[1644736447049,0.85837851,42435.0,42425.0,0.00022794]
[1644736447294,0.08216868,42430.0,42424.0,0.19956195]
[1644736447495,0.54902008,42430.0,42424.0,0.00046657]
[1644736447696,0.28269439,42430.0,42424.0,0.00069451]
[1644736447895,0.28269439,42430.0,42424.0,0.00022794]
[1644736448095,0.28269439,42430.0,42424.0,0.00046654]
[1644736448296,0.19326641,42427.0,42424.0,0.00069448]
[1644736449197,0.19326641,42427.0,42424.0,0.00022794]
[1644736449396,0.19326641,42427.0,42423.0,0.19978987]
[1644736450399,0.19326641,42427.0,42423.0,0.19932332]
[1644736450598,0.19326641,42427.0,42423.0,0.19978987]
[1644736450901,0.20052571,42430.0,42423.0,0.19978987]
[1644736451154,0.00119606,42429.0,42423.0,0.19978987]
[1644736451549,0.00119606,42429.0,42423.0,0.19932332]
[1644736451752,0.00119606,42429.0,42425.0,0.08338653]
[1644736452252,0.00119606,42429.0,42425.0,0.08361447]
[1644736452849,0.00119606,42429.0,42425.0,0.00022794]
[1644736453050,0.00119606,42429.0,42424.0,0.00053752]
[1644736454051,0.00119606,42429.0,42424.0,0.00010562]
[1644736454251,0.00119606,42429.0,42424.0,0.00053752]
[1644736454902,0.00119606,42429.0,42425.0,0.0742719]
[1644736455097,0.00119606,42429.0,42425.0,0.07437752]
[1644736455597,0.20172177,42429.0,42425.0,0.07437752]
[1644736457098,0.00119606,42429.0,42425.0,0.07437752]
[1644736457501,0.20172177,42429.0,42425.0,0.07437752]
[1644736457899,0.20172177,42429.0,42425.0,0.00010562]
[1644736458099,0.20172177,42429.0,42424.0,0.1996948]
[1644736458747,0.20172177,42429.0,42424.0,0.19925784]
[1644736458946,0.20172177,42429.0,42424.0,0.1996948]
[1644736460151,0.20172177,42429.0,42424.0,0.19969406]
[1644736460749,0.23542216,42425.0,42424.0,0.19969406]
[1644736461149,0.23542216,42425.0,42424.0,0.19925784]
[1644736461349,0.23542216,42425.0,42424.0,0.330673]
[1644736461549,0.23542216,42425.0,42424.0,0.53003646]
[1644736461849,0.23542216,42425.0,42424.0,0.52993084]
[1644736462306,0.23542216,42425.0,42424.0,0.19925784]
[1644736462507,0.23542216,42425.0,42424.0,0.52993084]
[1644736463109,0.0011949,42428.0,42425.0,0.330673]
[1644736463308,0.0011949,42428.0,42425.0,0.00010562]
[1644736463508,0.0011949,42428.0,42424.0,0.19925784]
[1644736463710,0.0011949,42428.0,42425.0,0.330673]
[1644736463909,0.0011949,42428.0,42425.0,0.33077862]
[1644736464309,0.0011949,42428.0,42425.0,0.00010562]
[1644736464509,0.0011949,42428.0,42425.0,0.330673]
[1644736464709,0.0011949,42428.0,42425.0,0.00010562]
[1644736464909,0.0011949,42428.0,42425.0,0.330673]
[1644736465109,0.0011949,42428.0,42425.0,0.00010562]
[1644736465312,0.0011949,42428.0,42425.0,0.330673]
[1644736465510,0.0011949,42428.0,42424.0,0.19479979]
[1644736465708,0.0011949,42428.0,42424.0,0.19502904]
[1644736465910,0.0011949,42428.0,42424.0,0.19436346]
[1644736466147,0.0011949,42428.0,42425.0,0.330673]
[1644736466348,0.0011949,42428.0,42425.0,0.00022925]
[1644736466549,0.40210172,42429.0,42424.0,0.19479979]
[1644736466550,0.00308337,42425.0,42424.0,0.19479979]
[1644736466748,0.00308337,42425.0,42424.0,0.19502904]
[1644736467147,0.00308337,42425.0,42424.0,0.19459271]
[1644736470203,0.00308337,42425.0,42424.0,0.52526571]
[1644736470403,0.00308337,42425.0,42424.0,0.52503646]
[1644736470608,0.00308337,42425.0,42424.0,0.19436346]
[1644736470802,0.00308337,42425.0,42424.0,0.19459271]
[1644736472405,0.09261813,42425.0,42424.0,0.19459271]
[1644736473849,0.09261813,42425.0,42424.0,0.19436346]
[1644736474248,0.00308337,42425.0,42424.0,0.19436346]
[1644736474450,0.00308337,42425.0,42424.0,0.19459271]
[1644736476250,0.0783293,42425.0,42424.0,0.19459271]
[1644736476452,0.35042327,42425.0,42424.0,0.00022925]
[1644736476652,0.35042327,42425.0,42423.0,0.33090225]
[1644736476851,0.0783293,42425.0,42423.0,0.52526571]
[1644736477052,0.0783293,42425.0,42423.0,0.52503646]
[1644736477307,0.0783293,42425.0,42423.0,0.33090225]
[1644736477908,0.0783293,42425.0,42423.0,0.00022925]
[1644736478209,0.0783293,42425.0,42423.0,0.330673]
[1644736478411,0.0783293,42425.0,42423.0,0.33090225]
[1644736478609,0.0783293,42425.0,42423.0,0.00022925]
[1644736479011,0.00308337,42425.0,42423.0,0.00022925]
[1644736479209,0.00308337,42425.0,42423.0,0.52503646]
[1644736479410,0.00308337,42425.0,42422.0,0.19479979]
[1644736480310,0.00308337,42425.0,42423.0,0.52503646]
[1644736480509,0.00308337,42425.0,42423.0,0.19436346]
[1644736481955,0.00308337,42425.0,42423.0,0.19459271]
[1644736482954,0.00308337,42425.0,42423.0,0.19436346]
[1644736483157,0.33176365,42428.0,42427.0,0.06537153]
[1644736483356,0.53112738,42428.0,42427.0,0.06537153]
[1644736485409,0.46428674,42428.0,42427.0,0.06537153]
[1644736485610,0.20056908,42428.0,42427.0,0.06537153]
[1644736487616,0.597748,42429.0,42428.0,0.330673]
[1644736487810,0.597748,42429.0,42428.0,2.16849747]
[1644736488008,0.597748,42429.0,42428.0,2.21725747]
[1644736488660,0.597748,42429.0,42428.0,2.44049502]
[1644736489462,0.597748,42429.0,42428.0,2.63971885]
[1644736489859,0.597748,42429.0,42428.0,2.44049502]
[1644736490855,0.597748,42429.0,42428.0,0.96825747]
[1644736491059,0.60042762,42429.0,42428.0,1.16749367]
[1644736491260,0.60042762,42429.0,42428.0,0.91949747]
[1644736494899,0.60042762,42429.0,42428.0,0.617393]
[1644736496577,0.60042762,42429.0,42428.0,0.8888562]
[1644736497373,0.60042762,42429.0,42428.0,2.1378562]
[1644736497574,0.60042762,42429.0,42428.0,0.8888562]
[1644736498374,0.60042762,42429.0,42428.0,0.617393]
[1644736500201,0.60042762,42429.0,42428.0,0.517393]
[1644736500400,0.60042762,42429.0,42428.0,0.617393]
[1644736501401,0.59975772,42429.0,42428.0,0.617393]
[1644736502203,0.59975772,42429.0,42428.0,0.417393]
[1644736502403,0.59975772,42429.0,42428.0,0.430673]
[1644736502903,0.59975772,42429.0,42428.0,0.59711317]
[1644736503101,0.59975772,42429.0,42428.0,0.79711317]
[1644736503303,0.59975772,42429.0,42428.0,0.46644017]
[1644736503559,0.59975772,42429.0,42428.0,0.79711317]
[1644736503753,0.59975772,42429.0,42428.0,2.04611317]
[1644736504160,0.59975772,42429.0,42428.0,1.71544017]
[1644736504556,0.59975772,42429.0,42428.0,2.04611317]
[1644736504757,0.59975772,42429.0,42428.0,0.99634937]
[1644736504955,0.59975772,42429.0,42428.0,1.91467637]
[1644736505156,0.59975772,42429.0,42428.0,0.99634937]
[1644736505357,0.59964836,42429.0,42428.0,0.79711317]
[1644736506156,0.59964836,42429.0,42428.0,0.530673]
[1644736506557,0.60031826,42429.0,42428.0,0.530673]
[1644736507158,0.60031826,42429.0,42428.0,0.2]
[1644736507403,0.60031826,42429.0,42428.0,0.1]
[1644736507600,0.60031826,42429.0,42428.0,0.430673]
[1644736507901,0.60031826,42429.0,42428.0,0.530673]
[1644736508100,0.60031826,42429.0,42428.0,0.330673]
[1644736508501,0.60031826,42429.0,42427.0,0.06560078]
[1644736508702,0.60031826,42429.0,42427.0,0.16560078]
[1644736509500,0.60031826,42429.0,42428.0,0.330673]
[1644736509902,0.60031826,42429.0,42427.0,0.16560078]
[1644736510100,0.60031826,42429.0,42427.0,0.06560078]
[1644736510502,0.60031826,42429.0,42427.0,0.06537153]
[1644736510702,0.60031826,42429.0,42427.0,0.06560078]
[1644736510901,0.60031826,42429.0,42427.0,0.06537153]
[1644736511355,0.59872057,42429.0,42427.0,0.06537153]
[1644736511555,0.23452487,42428.0,42427.0,0.06537153]
[1644736513455,0.015003,42428.0,42427.0,1.31437153]
[1644736513657,0.29830115,42429.0,42427.0,1.31437153]
[1644736514054,0.06841856,42428.0,42427.0,1.31437153]
[1644736514253,0.13683712,42428.0,42427.0,1.31437153]
[1644736515405,0.13683712,42428.0,42427.0,1.64504453]
[1644736515610,0.29830115,42429.0,42427.0,1.64504453]
[1644736515611,0.29830115,42429.0,42428.0,2.16577142]
[1644736515805,0.29830115,42429.0,42428.0,2.64924442]
[1644736516005,0.29830115,42429.0,42428.0,2.31857142]
[1644736516607,0.29830115,42429.0,42428.0,2.64924442]
[1644736517007,0.29721922,42429.0,42428.0,1.79924442]
[1644736517912,0.29721922,42429.0,42428.0,1.99845335]
[1644736518111,0.29721922,42429.0,42428.0,1.79924442]
[1644736518311,0.29721922,42429.0,42428.0,1.46857142]
[1644736518559,0.29721922,42429.0,42428.0,1.51857142]
[1644736518752,0.29721922,42429.0,42428.0,1.71778038]
[1644736518952,0.29721922,42429.0,42428.0,1.51857142]
[1644736519353,0.29721922,42429.0,42428.0,1.7177573]
[1644736521153,0.29721922,42429.0,42428.0,1.6677573]
[1644736521554,0.29925687,42429.0,42428.0,1.6677573]
[1644736529452,0.29925687,42429.0,42428.0,1.66782033]
[1644736529651,0.29925687,42429.0,42428.0,1.46857142]
[1644736530104,0.29925687,42429.0,42428.0,1.66781645]
[1644736530501,0.29925687,42429.0,42428.0,1.46857142]
[1644736531303,0.29721922,42429.0,42428.0,1.47220063]
[1644736533013,0.29721922,42429.0,42428.0,0.55387363]
[1644736533206,0.29721922,42429.0,42428.0,0.22320063]
[1644736533406,0.29721922,42429.0,42428.0,0.12320063]
[1644736533654,0.29721922,42429.0,42428.0,0.32245495]
[1644736533855,0.29721922,42429.0,42428.0,0.65312795]
[1644736534154,0.29721922,42429.0,42428.0,0.45387363]
[1644736534355,0.29721922,42429.0,42428.0,0.12320063]
[1644736534554,0.29721922,42429.0,42428.0,0.7770677]
[1644736534753,0.29721922,42429.0,42428.0,0.7956517]
[1644736534956,0.29721922,42429.0,42428.0,0.85313063]
[1644736535157,0.29721922,42429.0,42428.0,0.32320063]
[1644736535353,0.29721922,42429.0,42428.0,0.22320063]
[1644736535554,0.29721922,42429.0,42428.0,0.32245655]
[1644736536253,0.29721922,42429.0,42428.0,0.26965655]
[1644736536454,0.29710452,42429.0,42428.0,0.07040063]
[1644736536857,0.29710452,42429.0,42428.0,0.06677142]
[1644736537724,0.29710452,42429.0,42428.0,0.16677142]
[1644736538121,0.29710452,42429.0,42428.0,0.36602734]
[1644736538320,0.29710452,42429.0,42428.0,0.46602734]
[1644736538524,0.50184967,42440.0,42437.0,0.20980015]
[1644736538525,0.00043561,42440.0,42437.0,0.20980015]
[1644736538923,0.00043561,42440.0,42438.0,0.0528]
[1644736539227,0.01768523,42443.0,42438.0,0.0528]
[1644736539621,0.00043563,42441.0,42438.0,0.0528]
[1644736540522,0.01768523,42443.0,42438.0,0.0528]
[1644736540922,0.00043563,42442.0,42438.0,0.0528]
[1644736541751,0.01768523,42443.0,42438.0,0.0528]
[1644736541951,0.00043563,42442.0,42438.0,0.0528]
[1644736542854,0.01768523,42443.0,42438.0,0.0528]
[1644736543051,0.0004103,42442.0,42438.0,0.0528]
[1644736543553,0.016003,42445.0,42444.0,0.02536349]
[1644736545507,0.26671435,42445.0,42444.0,0.02536349]
[1644736546205,0.016003,42445.0,42444.0,0.02536349]
[1644736549065,0.21639219,42445.0,42444.0,0.02536349]
[1644736549864,0.20892953,42445.0,42444.0,0.02536349]
[1644736550365,0.016003,42445.0,42444.0,0.02536349]
[1644736551971,0.21638627,42445.0,42444.0,0.02536349]
[1644736552167,0.016003,42445.0,42444.0,0.02536349]
[1644736553024,0.21638627,42445.0,42444.0,0.02536349]
[1644736553823,0.016003,42445.0,42444.0,0.02536349]
[1644736555524,0.26649854,42445.0,42444.0,0.02536349]
[1644736556357,0.31649854,42445.0,42444.0,0.02536349]
[1644736556561,0.066003,42445.0,42444.0,0.02536349]
[1644736556759,0.266003,42445.0,42444.0,0.02536349]
[1644736557159,0.56668569,42445.0,42444.0,0.02536349]
[1644736557359,0.266003,42445.0,42444.0,0.02536349]
[1644736557760,0.166003,42445.0,42444.0,0.02536349]
[1644736558362,0.46668569,42445.0,42444.0,0.02536349]
[1644736558559,0.41668569,42445.0,42444.0,0.02536349]
[1644736558759,0.31668569,42445.0,42444.0,0.02536349]
[1644736559160,0.016003,42445.0,42444.0,0.02536349]
[1644736560217,0.36668569,42445.0,42444.0,0.02536349]
[1644736560516,0.31668569,42445.0,42444.0,0.02536349]
[1644736560718,0.016003,42445.0,42444.0,0.02536349]
[1644736560920,0.2665292,42445.0,42444.0,0.02536349]
[1644736561619,0.26850138,42445.0,42444.0,0.02536349]
[1644736562220,0.01797518,42445.0,42444.0,0.02536349]
[1644736564057,0.01797518,42445.0,42444.0,0.02525235]
[1644736566156,0.28304168,42445.0,42444.0,0.02525235]
[1644736567518,0.01797518,42445.0,42444.0,0.02525235]
[1644736570621,0.29716593,42445.0,42444.0,0.02525235]
[1644736571163,0.54769213,42445.0,42444.0,0.02525235]
[1644736572660,0.29716593,42445.0,42444.0,0.02525235]
[1644736574264,0.54768361,42445.0,42444.0,0.02525235]
[1644736574662,0.58270934,42445.0,42444.0,0.02525235]
[1644736574908,0.30351859,42445.0,42444.0,0.02525235]
[1644736575109,0.05300091,42445.0,42444.0,0.02525235]
[1644736575308,0.01797518,42445.0,42444.0,0.02525235]
[1644736576909,0.26850232,42445.0,42444.0,0.02525235]
[1644736577710,0.01797518,42445.0,42444.0,0.02525235]
[1644736578558,0.26850232,42445.0,42444.0,0.02525235]
[1644736579359,0.01797518,42445.0,42444.0,0.02525235]
[1644736579861,0.26851384,42445.0,42444.0,0.02525235]
[1644736582522,0.01797518,42445.0,42444.0,0.02514097]
[1644736583220,0.31865787,42445.0,42444.0,0.02514097]
[1644736583928,0.01797518,42445.0,42444.0,0.02514097]
[1644736592917,0.31865787,42445.0,42444.0,0.02514097]
[1644736593761,0.01797518,42445.0,42444.0,0.02514097]
[1644736594660,0.31865787,42445.0,42444.0,0.02514097]
[1644736595462,0.01797518,42445.0,42444.0,0.02514097]
[1644736596662,0.31865787,42445.0,42444.0,0.02514097]
[1644736598109,0.01797518,42445.0,42444.0,0.02514097]
[1644736600112,0.001,42446.0,42445.0,0.02619782]
[1644736601373,0.25160835,42446.0,42445.0,0.02619782]
[1644736601773,0.001,42446.0,42445.0,0.02619782]
[1644736604275,0.1778893,42446.0,42445.0,0.02619782]
[1644736604674,0.001,42446.0,42445.0,0.02619782]
[1644736604912,0.30176552,42446.0,42445.0,0.02619782]
[1644736605513,0.48809541,42446.0,42445.0,0.02619782]
[1644736605715,0.19158323,42446.0,42445.0,0.02619782]
[1644736606114,0.54242949,42446.0,42445.0,0.02619782]
[1644736606715,0.54242949,42446.0,42445.0,0.02899215]
[1644736607516,0.19158323,42446.0,42445.0,0.02899215]
[1644736608564,0.54242949,42446.0,42445.0,0.02899215]
[1644736610463,0.59522949,42446.0,42445.0,0.02899215]
[1644736610660,0.45146751,42446.0,42445.0,0.02899215]
[1644736611359,0.35146751,42446.0,42445.0,0.02988722]
[1644736611561,0.59527974,42446.0,42445.0,0.02988722]
[1644736611760,0.40469651,42446.0,42445.0,0.02988722]
[1644736612164,0.59653325,42446.0,42445.0,0.02988722]
[1644736612809,0.69653325,42446.0,42445.0,0.02988722]
[1644736613009,0.59653325,42446.0,42445.0,0.02988722]
[1644736614212,0.30174137,42446.0,42445.0,0.02988722]
[1644736614411,0.001,42446.0,42445.0,0.02988722]
[1644736617558,0.30174137,42446.0,42445.0,0.02988722]
[1644736618358,0.001,42446.0,42445.0,0.02988722]
[1644736621232,0.26466774,42446.0,42445.0,0.02988722]
[1644736621436,0.56539678,42446.0,42445.0,0.02988722]
[1644736624464,0.56539678,42446.0,42445.0,0.02619782]
[1644736626568,0.56539678,42446.0,42445.0,0.0299236]
[1644736629018,0.30172904,42446.0,42445.0,0.0299236]
[1644736629817,0.5753845,42446.0,42445.0,0.0299236]
[1644736630521,0.30172904,42446.0,42445.0,0.0299236]
[1644736631162,0.30172904,42446.0,42445.0,0.0296236]
[1644736631360,0.57813526,42446.0,42445.0,0.02619782]
[1644736634360,0.30421038,42446.0,42445.0,0.02619782]
[1644736635208,0.58032462,42446.0,42445.0,0.02619782]
[1644736637112,0.30421038,42446.0,42445.0,0.02619782]
[1644736637511,0.35701038,42446.0,42445.0,0.02619782]
[1644736638760,0.30421038,42446.0,42445.0,0.02619782]
[1644736640061,0.00348134,42446.0,42445.0,0.02619782]
[1644736640261,0.0021,42447.0,42446.0,0.00586262]
[1644736641465,0.0021,42447.0,42446.0,0.47442823]
[1644736641662,0.0021,42447.0,42446.0,0.28113151]
[1644736641868,0.0021,42447.0,42446.0,0.28432625]
[1644736644412,0.0021,42447.0,42446.0,0.37091497]
[1644736645112,0.0021,42447.0,42446.0,0.28432625]
[1644736646569,0.00463818,42447.0,42446.0,0.28432625]
[1644736647365,0.00463818,42447.0,42446.0,0.00586262]
[1644736651313,0.00331652,42447.0,42446.0,0.00586262]
[1644736652511,0.05611652,42447.0,42446.0,0.00586262]
[1644736662467,0.00331652,42447.0,42446.0,0.00586262]
[1644736664469,0.00331652,42447.0,42446.0,0.2911612]
[1644736666514,0.00331652,42447.0,42446.0,0.28040542]
[1644736666714,0.00331652,42447.0,42446.0,0.00586262]
[1644736667114,0.00331652,42447.0,42446.0,0.28122881]
[1644736667916,0.00331652,42447.0,42446.0,0.34520728]
[1644736668415,0.00331652,42447.0,42446.0,0.28122881]
[1644736668662,0.00331652,42447.0,42446.0,0.28122816]
[1644736670163,0.0041,42455.0,42452.0,0.26155658]
[1644736670563,0.00595815,42455.0,42452.0,0.26155658]
[1644736671366,0.0041,42455.0,42452.0,0.26155658]
[1644736671564,0.00426723,42455.0,42452.0,0.26155658]
[1644736672716,0.0041,42455.0,42452.0,0.26155658]
[1644736672916,0.00426723,42455.0,42452.0,0.26155658]
[1644736673916,0.0041,42455.0,42452.0,0.26155658]
[1644736674117,0.00456457,42455.0,42452.0,0.26155658]
[1644736675023,0.0041,42455.0,42452.0,0.26155658]
[1644736675217,0.00456457,42455.0,42452.0,0.26155658]
[1644736676265,0.0041,42455.0,42452.0,0.26155658]
[1644736676465,0.00456457,42455.0,42452.0,0.26155658]
[1644736677464,0.0041,42455.0,42452.0,0.26155658]
[1644736677667,0.00456457,42455.0,42452.0,0.26155658]
[1644736677964,0.00456457,42455.0,42451.0,0.05642617]
[1644736678564,0.0041,42455.0,42451.0,0.05642617]
[1644736678965,0.00356457,42454.0,42451.0,0.26578057]
[1644736679813,0.0031,42454.0,42451.0,0.26578057]
[1644736680019,0.00356457,42454.0,42451.0,0.26578057]
[1644736681016,0.0031,42454.0,42451.0,0.26578057]
[1644736681415,0.00356457,42454.0,42451.0,0.26578057]
[1644736682215,0.0031,42454.0,42451.0,0.26578057]
[1644736682617,0.00356457,42454.0,42451.0,0.26578057]
[1644736683562,0.0031,42454.0,42451.0,0.26578057]
[1644736683764,0.00356457,42454.0,42451.0,0.26578057]
[1644736683963,0.08238717,42454.0,42451.0,0.26578057]
[1644736684763,0.0819226,42454.0,42451.0,0.26578057]
[1644736684964,0.08208948,42454.0,42451.0,0.26578057]
[1644736685965,0.0819226,42454.0,42451.0,0.26578057]
[1644736686164,0.08238712,42454.0,42451.0,0.26578057]
[1644736687168,0.0819226,42454.0,42451.0,0.26578057]
[1644736687418,0.08238712,42454.0,42451.0,0.26578057]
[1644736688025,0.00356452,42454.0,42451.0,0.26578057]
[1644736688324,0.0031,42454.0,42452.0,0.47508099]
[1644736688524,0.00356452,42454.0,42452.0,0.47508099]
[1644736689122,0.00356452,42454.0,42452.0,0.46327152]
[1644736689325,0.00356452,42454.0,42452.0,0.20035452]
[1644736689524,0.0031,42454.0,42452.0,0.47000878]
[1644736692663,0.0031,42454.0,42452.0,0.26965426]
[1644736697118,0.0031,42454.0,42451.0,0.52031278]
[1644736697820,0.0031,42454.0,42451.0,0.26578057]
[1644736698222,0.00356452,42454.0,42451.0,0.26578057]
[1644736699067,0.0031,42454.0,42451.0,0.53191824]
[1644736699264,0.00356452,42454.0,42451.0,0.26578057]
[1644736700265,0.0031,42456.0,42455.0,0.01951929]
[1644736717923,0.0031,42456.0,42455.0,0.34998529]
[1644736718125,0.011,42459.0,42458.0,0.65]
[1644736718324,0.011,42459.0,42456.0,0.05963336]
[1644736719124,0.011,42459.0,42457.0,0.06778885]
[1644736719326,0.011,42459.0,42458.0,0.22656187]
[1644736720225,0.011,42459.0,42458.0,0.4974811]
[1644736720927,0.011,42459.0,42458.0,0.50441941]
[1644736721165,0.011,42459.0,42458.0,0.22656187]
[1644736722670,0.011,42459.0,42458.0,0.49562489]
[1644736726431,0.011,42459.0,42458.0,0.49811976]
[1644736727132,0.001,42459.0,42458.0,0.49811976]
[1644736727731,0.001,42459.0,42458.0,0.22905674]
[1644736730265,0.032,42463.0,42462.0,0.01303276]
[1644736741015,0.03187471,42463.0,42462.0,0.01303276]
[1644736758668,0.03187471,42463.0,42462.0,0.00803276]
[1644736760270,0.07341379,42468.0,42467.0,0.11183204]
[1644736760469,0.0031,42468.0,42467.0,0.11183204]
[1644736771420,0.0031,42468.0,42467.0,0.40507724]
[1644736772221,0.011,42469.0,42468.0,2.099]
[1644736772422,0.011,42469.0,42468.0,0.85683159]
[1644736772623,0.011,42469.0,42468.0,1.16579848]
[1644736773573,0.011,42469.0,42468.0,0.31579848]
[1644736774870,0.011,42469.0,42468.0,0.36176689]
[1644736776471,0.011,42469.0,42468.0,0.36423934]
[1644736777318,0.011,42469.0,42468.0,0.05527245]
[1644736777720,0.011,42469.0,42468.0,0.32351941]
[1644736778320,0.011,42469.0,42468.0,1.57251941]
[1644736780820,0.011,42469.0,42468.0,1.30427245]
[1644736781270,0.011,42469.0,42468.0,1.3018]
[1644736782571,0.0031,42473.0,42468.0,1.3018]